fUSD/lending_fUSD_20250618
["ID","MTS","AMOUNT","RATE_DAILY","PERIOD"]
[366425236,1750251032550,-302.4,0.00016383,2]
[366425237,1750251032561,-522.81353733,0.00016383,2]
[366425238,1750251032577,-5959.31830685,0.0001639,2]
[366425239,1750251032587,-990.16374385,0.00016392,2]
[366425240,1750251032598,-342.73641274,0.00016393,2]
[366425241,1750251032609,-513.0,0.00016397,2]
[366425242,1750251032621,-1737.33206664,0.00016398,2]
[366425243,1750251032630,-61011.46089872,0.000164,5]
[366425245,1750251032641,-945.89771131,0.000164,2]
[366425246,1750251032652,-495.36,0.00016409,2]
[366425247,1750251032662,-492.62,0.00016409,2]
[366425248,1750251032671,-833.92080167,0.00016425,2]
[366425249,1750251032680,-9427.0787799,0.00016429,2]
[366425250,1750251032690,-6043.01342102,0.00016435,2]
[366425251,1750251032700,-500.0,0.00016437,2]
[366425252,1750251032710,-192.36293043,0.00016437,2]
[366425253,1750251032719,-172.49,0.00016437,2]
[366425254,1750251032729,-493.42,0.00016438,2]
[366425255,1750251032739,-495.39,0.00016438,2]
[366425256,1750251032748,-151.91,0.00016438,2]
[366425257,1750251032758,-495.06,0.00016438,2]
[366425258,1750251032767,-491.69,0.00016438,2]
[366425259,1750251032777,-301.72,0.00016438,2]
[366425260,1750251032786,-509.04,0.00016438,2]
[366425261,1750251032796,-710.95306027,0.00016438,2]
[366425262,1750251032805,-83182.92886648,0.00016438,2]
[366425263,1750251032815,-739.0,0.00016438,2]
[366425264,1750251032824,-304.84,0.00016438,2]
[366425265,1750251032834,-504.41,0.00016438,2]
[366425266,1750251032843,-151.0,0.00016438,2]
[366425267,1750251032853,-257.712027,0.00016438,2]
[366425268,1750251032863,-151.72289,0.00016438,2]
[366425269,1750251032872,-490.0,0.00016438,2]
[366425270,1750251032881,-151.0,0.00016438,2]
[366425271,1750251032890,-151.0,0.00016438,2]
[366425272,1750251032899,-478.00934382,0.00016438,2]
[366425273,1750251032909,-423.66342971,0.00016438,2]
[366425274,1750251032919,-490.0,0.00016438,2]
[366425275,1750251032931,-497.6541276,0.00016438,2]
[366425276,1750251032941,-490.0,0.00016438,2]
[366425277,1750251032952,-490.0,0.00016438,2]
[366425278,1750251032963,-490.0,0.00016438,2]
[366425279,1750251032973,-501.51967278,0.00016438,2]
[366425280,1750251032983,-151.0,0.00016438,2]
[366425281,1750251032992,-490.0,0.00016438,2]
[366425282,1750251033003,-490.0,0.00016438,2]
[366425283,1750251033012,-490.0,0.00016438,2]
[366425284,1750251033021,-490.0,0.00016438,2]
[366425285,1750251033031,-490.0,0.00016438,2]
[366425286,1750251033040,-490.0,0.00016438,2]
[366425287,1750251033049,-490.0,0.00016438,2]
[366425288,1750251033059,-490.0,0.00016438,2]
[366425289,1750251033069,-200.0,0.00016438,2]
[366425290,1750251033078,-490.0,0.00016438,2]
[366425291,1750251033088,-490.0,0.00016438,2]
[366425292,1750251033098,-490.0,0.00016438,2]
[366425293,1750251033107,-588.29,0.00016438,2]
[366425294,1750251033117,-490.0,0.00016438,2]
[366425295,1750251033127,-490.0,0.00016438,2]
[366425296,1750251033136,-490.0,0.00016438,2]
[366425297,1750251033146,-490.0,0.00016438,2]
[366425298,1750251033156,-493.21416407,0.00016438,2]
[366425299,1750251033165,-490.0,0.00016438,2]
[366425300,1750251033174,-490.0,0.00016438,2]
[366425301,1750251033183,-493.72823023,0.00016438,2]
[366425302,1750251033192,-490.0,0.00016438,2]
[366425303,1750251033201,-490.0,0.00016438,2]
[366425304,1750251033211,-490.0,0.00016438,2]
[366425305,1750251033220,-490.0,0.00016438,2]
[366425306,1750251033230,-490.0,0.00016438,2]
[366425307,1750251033239,-490.0,0.00016438,2]
[366425308,1750251033249,-775.62,0.00016438,2]
[366425309,1750251033258,-540.52,0.00016438,2]
[366425310,1750251033267,-168.30061177,0.00016438,2]
[366425311,1750251033277,-218.67905331,0.00016438,2]
[366425312,1750251033287,-490.0,0.00016438,2]
[366425313,1750251033296,-490.0,0.00016438,2]
[366425314,1750251033306,-490.0,0.00016438,2]
[366425315,1750251033315,-490.0,0.00016438,2]
[366425316,1750251033325,-490.0,0.00016438,2]
[366425317,1750251033335,-490.0,0.00016438,2]
[366425318,1750251033344,-490.0,0.00016438,2]
[366425319,1750251033354,-496.0,0.00016438,2]
[366425320,1750251033363,-490.0,0.00016438,2]
[366425321,1750251033373,-492.89418261,0.00016438,2]
[366425322,1750251033383,-490.0,0.00016438,2]
[366425323,1750251033691,-490.0,0.00016438,2]
[366425324,1750251033701,-819.96,0.00016438,2]
[366425325,1750251033710,-490.0,0.00016438,2]
[366425326,1750251033720,-492.67102437,0.00016438,2]
[366425327,1750251033730,-494.6479509,0.00016438,2]
[366425328,1750251033739,-490.0,0.00016438,2]
[366425329,1750251033749,-505.49016365,0.00016438,2]
[366425330,1750251033759,-493.21148047,0.00016438,2]
[366425331,1750251033769,-490.0,0.00016438,2]
[366425332,1750251033778,-491.93681197,0.00016438,2]
[366425333,1750251033788,-490.0,0.00016438,2]
[366425334,1750251033798,-490.0,0.00016438,2]
[366425335,1750251033807,-490.0,0.00016438,2]
[366425336,1750251033817,-493.74293135,0.00016438,2]
[366425337,1750251033827,-492.37218942,0.00016438,2]
[366425338,1750251033837,-490.0,0.00016438,2]
[366425339,1750251033846,-542.61,0.00016438,2]
[366425340,1750251033856,-493.29266253,0.00016438,2]
[366425341,1750251033866,-490.0,0.00016438,2]
[366425342,1750251033875,-490.0,0.00016438,2]
[366425343,1750251033885,-490.0,0.00016438,2]
[366425344,1750251033895,-490.0,0.00016438,2]
[366425345,1750251033905,-583.43,0.00016438,2]
[366425346,1750251033914,-491.76101177,0.00016438,2]
[366425347,1750251033924,-490.0,0.00016438,2]
[366425348,1750251033933,-492.52806718,0.00016438,2]
[366425349,1750251033943,-495.00135515,0.00016438,2]
[366425350,1750251033952,-490.0,0.00016438,2]
[366425351,1750251033962,-490.0,0.00016438,2]
[366425352,1750251033972,-490.0,0.00016438,2]
[366425353,1750251033982,-490.86169595,0.00016438,2]
[366425354,1750251033992,-490.0,0.00016438,2]
[366425355,1750251034002,-783.16,0.00016438,2]
[366425356,1750251034011,-490.0,0.00016438,2]
[366425357,1750251034020,-431.87475676,0.00016438,2]
[366425358,1750251034030,-490.0,0.00016438,2]
[366425359,1750251034039,-490.0,0.00016438,2]
[366425360,1750251034049,-490.0,0.00016438,2]
[366425361,1750251034059,-490.0,0.00016438,2]
[366425362,1750251034069,-490.0,0.00016438,2]
[366425363,1750251034079,-490.0,0.00016438,2]
[366425364,1750251034088,-495.16552134,0.00016438,2]
[366425365,1750251034098,-490.0,0.00016438,2]
[366425366,1750251034107,-490.0,0.00016438,2]
[366425367,1750251034117,-490.0,0.00016438,2]
[366425368,1750251034127,-574.98,0.00016438,2]
[366425369,1750251034136,-639.09,0.00016438,2]
[366425370,1750251034147,-490.0,0.00016438,2]
[366425371,1750251034156,-726.18,0.00016438,2]
[366425372,1750251034166,-490.0,0.00016438,2]
[366425373,1750251034176,-490.0,0.00016438,2]
[366425374,1750251034185,-490.0,0.00016438,2]
[366425375,1750251034195,-490.0,0.00016438,2]
[366425376,1750251034205,-490.0,0.00016438,2]
[366425377,1750251034215,-490.0,0.00016438,2]
[366425378,1750251034224,-490.0,0.00016438,2]
[366425379,1750251034234,-490.0,0.00016438,2]
[366425380,1750251034244,-490.0,0.00016438,2]
[366425381,1750251034254,-490.0,0.00016438,2]
[366425382,1750251034263,-490.0,0.00016438,2]
[366425383,1750251034273,-490.0,0.00016438,2]
[366425384,1750251034282,-490.0,0.00016438,2]
[366425385,1750251034292,-490.0,0.00016438,2]
[366425386,1750251034302,-611.17,0.00016438,2]
[366425387,1750251034312,-242.759637,0.00016438,2]
[366425388,1750251034321,-494.77605668,0.00016438,2]
[366425389,1750251034331,-490.0,0.00016438,2]
[366425390,1750251034341,-490.0,0.00016438,2]
[366425391,1750251034351,-490.0,0.00016438,2]
[366425392,1750251034361,-667.29,0.00016438,2]
[366425393,1750251034370,-497.7246045,0.00016438,2]
[366425394,1750251034380,-490.0,0.00016438,2]
[366425395,1750251034390,-490.0,0.00016438,2]
[366425396,1750251034401,-490.0,0.00016438,2]
[366425397,1750251034411,-494.55659029,0.00016438,2]
[366425398,1750251034420,-490.0,0.00016438,2]
[366425399,1750251034430,-589.04,0.00016438,2]
[366425400,1750251034440,-499.11193014,0.00016438,2]
[366425401,1750251034449,-492.71951671,0.00016438,2]
[366425402,1750251034459,-490.0,0.00016438,2]
[366425403,1750251034469,-490.0,0.00016438,2]
[366425404,1750251034479,-495.52655772,0.00016438,2]
[366425405,1750251034488,-709.7,0.00016438,2]
[366425406,1750251034498,-493.91444137,0.00016438,2]
[366425407,1750251034507,-669.38,0.00016438,2]
[366425408,1750251034518,-490.88904172,0.00016438,2]
[366425409,1750251034527,-490.0,0.00016438,2]
[366425410,1750251034537,-490.0,0.00016438,2]
[366425411,1750251034547,-490.0,0.00016438,2]
[366425412,1750251034557,-490.0,0.00016438,2]
[366425413,1750251034568,-490.0,0.00016438,2]
[366425414,1750251034577,-490.0,0.00016438,2]
[366425415,1750251034587,-490.0,0.00016438,2]
[366425416,1750251034597,-490.0,0.00016438,2]
[366425417,1750251034607,-490.0,0.00016438,2]
[366425418,1750251034617,-490.0,0.00016438,2]
[366425419,1750251034626,-490.0,0.00016438,2]
[366425420,1750251034636,-738.08,0.00016438,2]
[366425421,1750251034648,-151.0,0.00016438,2]
[366425422,1750251034658,-151.0,0.00016438,2]
[366425423,1750251034668,-490.0,0.00016438,2]
[366425424,1750251034677,-151.0,0.00016438,2]
[366425425,1750251034687,-572.99,0.00016438,2]
[366425426,1750251034696,-491.01517652,0.00016438,2]
[366425427,1750251034706,-610.07,0.00016438,2]
[366425428,1750251034716,-490.0,0.00016438,2]
[366425429,1750251034726,-490.0,0.00016438,2]
[366425430,1750251034735,-490.0,0.00016438,2]
[366425431,1750251034745,-507.42724435,0.00016438,2]
[366425432,1750251034754,-490.0,0.00016438,2]
[366425433,1750251034763,-490.0,0.00016438,2]
[366425434,1750251034773,-490.0,0.00016438,2]
[366425435,1750251034783,-490.0,0.00016438,2]
[366425436,1750251034792,-608.08,0.00016438,2]
[366425437,1750251034803,-490.0,0.00016438,2]
[366425438,1750251034812,-490.0,0.00016438,2]
[366425439,1750251034822,-356.82657006,0.00016438,2]
[366425440,1750251034831,-490.0,0.00016438,2]
[366425441,1750251034841,-507.43114,0.00016438,2]
[366425442,1750251034850,-490.0,0.00016438,2]
[366425443,1750251034859,-490.0,0.00016438,2]
[366425444,1750251034869,-500.0,0.00016438,2]
[366425445,1750251034878,-490.0,0.00016438,2]
[366425446,1750251034887,-1106.45,0.00016438,2]
[366425447,1750251034897,-495.31079342,0.00016438,2]
[366425448,1750251034906,-490.0,0.00016438,2]
[366425449,1750251034916,-490.0,0.00016438,2]
[366425450,1750251034926,-490.0,0.00016438,2]
[366425451,1750251034936,-490.0,0.00016438,2]
[366425452,1750251034947,-563.39406416,0.00016438,2]
[366425453,1750251034957,-601.86,0.00016438,2]
[366425454,1750251034967,-490.0,0.00016438,2]
[366425455,1750251034978,-490.0,0.00016438,2]
[366425456,1750251034987,-173.96734723,0.00016438,2]
[366425457,1750251034996,-997.96,0.00016438,2]
[366425458,1750251035006,-490.0,0.00016438,2]
[366425459,1750251035015,-500.38105824,0.00016438,2]
[366425460,1750251035024,-490.0,0.00016438,2]
[366425461,1750251035034,-490.0,0.00016438,2]
[366425462,1750251035043,-1840.97,0.00016438,2]
[366425463,1750251035052,-490.0,0.00016438,2]
[366425464,1750251035062,-724.56,0.00016438,2]
[366425465,1750251035071,-490.0,0.00016438,2]
[366425466,1750251035081,-613.23,0.00016438,2]
[366425467,1750251035091,-490.0,0.00016438,2]
[366425468,1750251035100,-490.0,0.00016438,2]
[366425469,1750251035110,-490.0,0.00016438,2]
[366425470,1750251035120,-490.0,0.00016438,2]
[366425471,1750251035130,-490.0,0.00016438,2]
[366425472,1750251035139,-958.45,0.00016438,2]
[366425473,1750251035149,-493.7,0.00016438,2]
[366425474,1750251035160,-490.0,0.00016438,2]
[366425475,1750251035170,-490.0,0.00016438,2]
[366425476,1750251035179,-676.07,0.00016438,2]
[366425477,1750251035190,-490.0,0.00016438,2]
[366425478,1750251035200,-1154.69,0.00016438,2]
[366425479,1750251035210,-993.7,0.00016438,2]
[366425480,1750251035220,-1355.33,0.00016438,2]
[366425481,1750251035230,-490.0,0.00016438,2]
[366425482,1750251035239,-490.0,0.00016438,2]
[366425483,1750251035249,-490.0,0.00016438,2]
[366425484,1750251035259,-490.0,0.00016438,2]
[366425485,1750251035268,-490.0,0.00016438,2]
[366425486,1750251035277,-1195.09,0.00016438,2]
[366425487,1750251035287,-1299.63,0.00016438,2]
[366425488,1750251035296,-490.0,0.00016438,2]
[366425489,1750251035305,-491.04007856,0.00016438,2]
[366425490,1750251035315,-692.2,0.00016438,2]
[366425491,1750251035324,-683.19,0.00016438,2]
[366425492,1750251035333,-668.31,0.00016438,2]
[366425493,1750251035343,-490.0,0.00016438,2]
[366425494,1750251035352,-1237.85,0.00016438,2]
[366425495,1750251035362,-494.61227858,0.00016438,2]
[366425496,1750251035371,-409.79164724,0.00016438,2]
[366425497,1750251035380,-490.0,0.00016438,2]
[366425498,1750251035389,-490.0,0.00016438,2]
[366425499,1750251035399,-490.0,0.00016438,2]
[366425500,1750251035409,-490.0,0.00016438,2]
[366425501,1750251035418,-490.0,0.00016438,2]
[366425502,1750251035429,-490.0,0.00016438,2]
[366425503,1750251035439,-492.94213881,0.00016438,2]
[366425504,1750251035448,-490.0,0.00016438,2]
[366425505,1750251035458,-993.85,0.00016438,2]
[366425506,1750251035468,-993.85,0.00016438,2]
[366425507,1750251035478,-490.0,0.00016438,2]
[366425508,1750251035488,-500.0,0.00016438,2]
[366425509,1750251035498,-993.85,0.00016438,2]
[366425510,1750251035508,-500.0,0.00016438,2]
[366425511,1750251035518,-993.85,0.00016438,2]
[366425512,1750251035528,-490.0,0.00016438,2]
[366425513,1750251035538,-490.0,0.00016438,2]
[366425514,1750251035548,-490.0,0.00016438,2]
[366425515,1750251035558,-721.33,0.00016438,2]
[366425516,1750251035570,-492.35183134,0.00016438,2]
[366425517,1750251035580,-552.71,0.00016438,2]
[366425518,1750251035590,-490.0,0.00016438,2]
[366425519,1750251035600,-1280.1,0.00016438,2]
[366425520,1750251035611,-490.0,0.00016438,2]
[366425521,1750251035620,-1173.09,0.00016438,2]
[366425522,1750251035630,-544.45,0.00016438,2]
[366425523,1750251035640,-490.0,0.00016438,2]
[366425524,1750251035651,-490.0,0.00016438,2]
[366425525,1750251035662,-490.0,0.00016438,2]
[366425526,1750251035671,-1363.47,0.00016438,2]
[366425527,1750251035681,-490.0,0.00016438,2]
[366425528,1750251035691,-490.0,0.00016438,2]
[366425529,1750251035700,-490.0,0.00016438,2]
[366425530,1750251035709,-684.12,0.00016438,2]
[366425531,1750251035719,-637.03,0.00016438,2]
[366425532,1750251035729,-723.5,0.00016438,2]
[366425533,1750251035739,-500.54619802,0.00016438,2]
[366425534,1750251035749,-1206.48,0.00016438,2]
[366425535,1750251035758,-490.0,0.00016438,2]
[366425536,1750251035768,-490.0,0.00016438,2]
[366425537,1750251035777,-847.0,0.00016438,2]
[366425538,1750251035786,-1459.66,0.00016438,2]
[366425539,1750251035796,-490.0,0.00016438,2]
[366425540,1750251035805,-1157.61,0.00016438,2]
[366425541,1750251035815,-1645.53,0.00016438,2]
[366425542,1750251035824,-490.0,0.00016438,2]
[366425543,1750251035833,-151.0,0.00016438,2]
[366425544,1750251035843,-151.0,0.00016438,2]
[366425545,1750251035852,-151.0,0.00016438,2]
[366425546,1750251035861,-164.005836,0.00016438,2]
[366425547,1750251035871,-493.05886358,0.00016438,2]
[366425548,1750251035880,-1120.55,0.00016438,2]
[366425549,1750251035889,-1135.74,0.00016438,2]
[366425550,1750251035899,-151.0,0.00016438,2]
[366425551,1750251035909,-1373.3,0.00016438,2]
[366425552,1750251035918,-490.0,0.00016438,2]
[366425553,1750251035927,-514.07,0.00016438,2]
[366425554,1750251035937,-490.0,0.00016438,2]
[366425555,1750251035947,-490.0,0.00016438,2]
[366425556,1750251035957,-702.58,0.00016438,2]
[366425557,1750251035967,-531.8,0.00016438,2]
[366425558,1750251035977,-531.8,0.00016438,2]
[366425559,1750251035989,-531.8,0.00016438,2]
[366425560,1750251036001,-531.8,0.00016438,2]
[366425561,1750251036010,-490.0,0.00016438,2]
[366425562,1750251036020,-531.8,0.00016438,2]
[366425563,1750251036029,-531.8,0.00016438,2]
[366425564,1750251036040,-531.8,0.00016438,2]
[366425565,1750251036051,-490.0,0.00016438,2]
[366425566,1750251036061,-490.0,0.00016438,2]
[366425567,1750251036071,-1366.48,0.00016438,2]
[366425568,1750251036080,-490.0,0.00016438,2]
[366425569,1750251036090,-490.0,0.00016438,2]
[366425570,1750251036099,-151.0,0.00016438,2]
[366425571,1750251036108,-151.0,0.00016438,2]
[366425572,1750251036118,-490.0,0.00016438,2]
[366425573,1750251036128,-1555.24,0.00016438,2]
[366425574,1750251036138,-491.57259862,0.00016438,2]
[366425575,1750251036147,-2012.69,0.00016438,2]
[366425576,1750251036157,-490.0,0.00016438,2]
[366425577,1750251036167,-490.0,0.00016438,2]
[366425578,1750251036177,-662.22,0.00016438,2]
[366425579,1750251036186,-871.09,0.00016438,2]
[366425580,1750251036196,-490.0,0.00016438,2]
[366425581,1750251036205,-490.0,0.00016438,2]
[366425582,1750251036215,-801.05,0.00016438,2]
[366425583,1750251036224,-948.37,0.00016438,2]
[366425584,1750251036234,-490.0,0.00016438,2]
[366425585,1750251036243,-780.72,0.00016438,2]
[366425586,1750251036253,-1148.73,0.00016438,2]
[366425587,1750251036264,-490.0,0.00016438,2]
[366425588,1750251036273,-492.18697514,0.00016438,2]
[366425589,1750251036283,-1323.69,0.00016438,2]
[366425590,1750251036292,-1533.66,0.00016438,2]
[366425591,1750251036302,-623.56,0.00016438,2]
[366425592,1750251036311,-745.46,0.00016438,2]
[366425593,1750251036320,-933.51,0.00016438,2]
[366425594,1750251036330,-587.2,0.00016438,2]
[366425595,1750251036339,-490.0,0.00016438,2]
[366425596,1750251036349,-1201.35,0.00016438,2]
[366425597,1750251036358,-490.0,0.00016438,2]
[366425598,1750251036367,-490.0,0.00016438,2]
[366425599,1750251036376,-490.0,0.00016438,2]
[366425600,1750251036386,-679.69,0.00016438,2]
[366425601,1750251036395,-1104.24,0.00016438,2]
[366425602,1750251036404,-490.0,0.00016438,2]
[366425603,1750251036414,-1150.82,0.00016438,2]
[366425604,1750251036423,-815.11,0.00016438,2]
[366425605,1750251036432,-877.49,0.00016438,2]
[366425606,1750251036442,-496.54240382,0.00016438,2]
[366425607,1750251036453,-490.0,0.00016438,2]
[366425608,1750251036463,-2165.99,0.00016438,2]
[366425609,1750251036472,-1348.12,0.00016438,2]
[366425610,1750251036482,-491.76106094,0.00016438,2]
[366425611,1750251036491,-491.00280472,0.00016438,2]
[366425612,1750251036501,-490.0,0.00016438,2]
[366425613,1750251036510,-492.53801958,0.00016438,2]
[366425614,1750251036520,-490.0,0.00016438,2]
[366425615,1750251036529,-987.81,0.00016438,2]
[366425616,1750251036539,-490.0,0.00016438,2]
[366425617,1750251036549,-636.39,0.00016438,2]
[366425618,1750251036560,-495.2635556,0.00016438,2]
[366425619,1750251036574,-490.0,0.00016438,2]
[366425620,1750251036584,-490.0,0.00016438,2]
[366425621,1750251036594,-1172.36,0.00016438,2]
[366425622,1750251036604,-1059.74,0.00016438,2]
[366425623,1750251036615,-791.98,0.00016438,2]
[366425624,1750251036625,-1273.74,0.00016438,2]
[366425625,1750251036634,-490.0,0.00016438,2]
[366425626,1750251036646,-490.0,0.00016438,2]
[366425627,1750251036656,-490.0,0.00016438,2]
[366425628,1750251036665,-151.0,0.00016438,2]
[366425629,1750251036674,-151.0,0.00016438,2]
[366425630,1750251036684,-151.0,0.00016438,2]
[366425631,1750251036694,-491.75299176,0.00016438,2]
[366425632,1750251036703,-151.0,0.00016438,2]
[366425633,1750251036713,-285.230152,0.00016438,2]
[366425634,1750251036722,-490.0,0.00016438,2]
[366425635,1750251036732,-621.5,0.00016438,2]
[366425636,1750251036742,-542.19,0.00016438,2]
[366425637,1750251036752,-490.0,0.00016438,2]
[366425638,1750251036762,-490.0,0.00016438,2]
[366425639,1750251036772,-490.0,0.00016438,2]
[366425640,1750251036781,-1066.81,0.00016438,2]
[366425641,1750251036791,-491.31180553,0.00016438,2]
[366425642,1750251036801,-490.0,0.00016438,2]
[366425643,1750251036811,-1073.11,0.00016438,2]
[366425644,1750251036820,-658.81,0.00016438,2]
[366425645,1750251036830,-490.0,0.00016438,2]
[366425646,1750251036839,-610.43,0.00016438,2]
[366425647,1750251036849,-490.0,0.00016438,2]
[366425648,1750251036859,-490.0,0.00016438,2]
[366425649,1750251036868,-491.8559127,0.00016438,2]
[366425650,1750251036878,-151.0,0.00016438,2]
[366425651,1750251036887,-151.0,0.00016438,2]
[366425652,1750251036898,-490.0,0.00016438,2]
[366425653,1750251036908,-763.91,0.00016438,2]
[366425654,1750251036917,-555.21434392,0.00016438,2]
[366425655,1750251036928,-1105.18,0.00016438,2]
[366425656,1750251036938,-493.91636229,0.00016438,2]
[366425657,1750251036948,-490.0,0.00016438,2]
[366425658,1750251036959,-490.0,0.00016438,2]
[366425659,1750251036968,-515.7,0.00016438,2]
[366425660,1750251036979,-529.84,0.00016438,2]
[366425661,1750251036988,-742.98,0.00016438,2]
[366425662,1750251036998,-490.0,0.00016438,2]
[366425663,1750251037009,-490.0,0.00016438,2]
[366425664,1750251037018,-490.0,0.00016438,2]
[366425665,1750251037028,-490.0,0.00016438,2]
[366425666,1750251037037,-490.0,0.00016438,2]
[366425667,1750251037047,-490.0,0.00016438,2]
[366425668,1750251037057,-997.09,0.00016438,2]
[366425669,1750251037066,-1329.22,0.00016438,2]
[366425670,1750251037076,-465.99625077,0.00016438,2]
[366425671,1750251037085,-490.0,0.00016438,2]
[366425672,1750251037094,-151.0,0.00016438,2]
[366425673,1750251037104,-839.89,0.00016438,2]
[366425674,1750251037114,-528.5,0.00016438,2]
[366425675,1750251037124,-151.0,0.00016438,2]
[366425676,1750251037133,-151.0,0.00016438,2]
[366425677,1750251037143,-490.0,0.00016438,2]
[366425678,1750251037152,-151.0,0.00016438,2]
[366425679,1750251037162,-1594.69,0.00016438,2]
[366425680,1750251037171,-296.869197,0.00016438,2]
[366425681,1750251037181,-840.47,0.00016438,2]
[366425682,1750251037191,-492.51199845,0.00016438,2]
[366425683,1750251037200,-494.56843643,0.00016438,2]
[366425684,1750251037210,-325.40334966,0.00016438,2]
[366425685,1750251037224,-490.0,0.00016438,2]
[366425686,1750251037234,-758.41,0.00016438,2]
[366425687,1750251037244,-490.0,0.00016438,2]
[366425688,1750251037254,-490.0,0.00016438,2]
[366425689,1750251037265,-347.59025488,0.00016438,2]
[366425690,1750251037274,-1690.88,0.00016438,2]
[366425691,1750251037285,-757.53,0.00016438,2]
[366425692,1750251037295,-490.0,0.00016438,2]
[366425693,1750251037307,-527.1,0.00016438,2]
[366425694,1750251037318,-739.27,0.00016438,2]
[366425695,1750251037329,-495.41501042,0.00016438,2]
[366425696,1750251037339,-490.0,0.00016438,2]
[366425697,1750251037350,-151.0,0.00016438,2]
[366425698,1750251037359,-151.0,0.00016438,2]
[366425699,1750251037369,-151.0,0.00016438,2]
[366425700,1750251037378,-490.0,0.00016438,2]
[366425701,1750251037388,-151.0,0.00016438,2]
[366425702,1750251037399,-1641.41,0.00016438,2]
[366425703,1750251037408,-490.0,0.00016438,2]
[366425704,1750251037419,-1231.08,0.00016438,2]
[366425705,1750251037428,-254.73767621,0.00016438,2]
[366425706,1750251037438,-490.0,0.00016438,2]
[366425707,1750251037448,-1153.77,0.00016438,2]
[366425708,1750251037459,-490.0,0.00016438,2]
[366425709,1750251037469,-603.19469352,0.00016438,2]
[366425710,1750251037478,-490.0,0.00016438,2]
[366425711,1750251037487,-630.55,0.00016438,2]
[366425712,1750251037497,-490.0,0.00016438,2]
[366425713,1750251037506,-490.0,0.00016438,2]
[366425714,1750251037516,-778.75,0.00016438,2]
[366425715,1750251037526,-494.51872029,0.00016438,2]
[366425716,1750251037535,-629.77,0.00016438,2]
[366425717,1750251037545,-2197.19,0.00016438,2]
[366425718,1750251037555,-169.878607,0.00016438,2]
[366425719,1750251037566,-490.0,0.00016438,2]
[366425720,1750251037578,-490.0,0.00016438,2]
[366425721,1750251037587,-490.0,0.00016438,2]
[366425722,1750251037597,-738.57,0.00016438,2]
[366425723,1750251037607,-350.33366529,0.00016438,2]
[366425724,1750251037617,-490.0,0.00016438,2]
[366425725,1750251037627,-490.0,0.00016438,2]
[366425726,1750251037637,-2124.48,0.00016438,2]
[366425727,1750251037651,-865.64,0.00016438,2]
[366425728,1750251037661,-490.0,0.00016438,2]
[366425729,1750251037671,-492.44143037,0.00016438,2]
[366425730,1750251037682,-1545.68,0.00016438,2]
[366425731,1750251037693,-2764.24,0.00016438,2]
[366425732,1750251037703,-490.0,0.00016438,2]
[366425733,1750251037714,-490.0,0.00016438,2]
[366425734,1750251037724,-151.0,0.00016438,2]
[366425735,1750251037735,-490.0,0.00016438,2]
[366425736,1750251037744,-490.0,0.00016438,2]